bitfinex-derivatives/quotes_BTCF0:USTF0_20250114
["timestamp","ask_amount","ask_price","bid_price","bid_amount"]
[1736819221841,0.052772,94782.0,94764.0,0.5834905]
[1736819221842,0.052773,94781.0,94773.0,0.052777]
[1736819222746,0.413569,94787.0,94773.0,0.052777]
[1736819223138,0.413569,94787.0,94784.0,0.001]
[1736819223442,0.42978968,94787.0,94784.0,0.001]
[1736819223846,0.37702068,94787.0,94784.0,0.001]
[1736819224141,0.05277,94786.0,94784.0,0.001]
[1736819226145,0.052772,94782.0,94773.0,0.003]
[1736819226448,0.052773,94780.0,94773.0,0.003]
[1736819227335,0.052773,94780.0,94770.0,0.0331]
[1736819227648,0.052773,94780.0,94773.0,0.003]
[1736819228045,0.052773,94780.0,94770.0,0.0331]
[1736819228244,0.052773,94780.0,94773.0,0.003]
[1736819229342,0.052773,94780.0,94773.0,0.006]
[1736819230349,0.052773,94780.0,94773.0,0.003]
[1736819230736,0.052773,94780.0,94773.0,0.006]
[1736819230942,0.46833257,94783.0,94773.0,0.006]
[1736819231241,0.3608,94783.0,94777.0,0.052774]
[1736819231439,0.3608,94783.0,94773.0,0.006]
[1736819231440,0.052775,94777.0,94773.0,0.006]
[1736819231639,0.052776,94775.0,94773.0,0.006]
[1736819233843,0.052776,94775.0,94773.0,0.003]
[1736819234450,0.052776,94775.0,94773.0,0.006]
[1736819235254,0.02100363,94782.0,94773.0,0.006]
[1736819235449,0.03653675,94782.0,94773.0,0.006]
[1736819235651,0.052776,94775.0,94773.0,0.006]
[1736819236245,0.052776,94775.0,94773.0,0.003]
[1736819236443,0.052776,94775.0,94773.0,0.006]
[1736819236851,0.052776,94775.0,94773.0,0.003]
[1736819237253,0.052776,94775.0,94773.0,0.006]
[1736819239761,0.413576,94775.0,94773.0,0.006]
[1736819240261,0.413576,94775.0,94773.0,0.005]
[1736819240563,0.413576,94775.0,94773.0,0.003]
[1736819240762,0.413576,94775.0,94773.0,0.004]
[1736819242167,0.413576,94775.0,94773.0,0.001]
[1736819242362,0.413576,94775.0,94773.0,0.003]
[1736819257275,0.3708,94775.0,94756.0,0.032]
[1736819257469,0.10697256,94769.0,94756.0,0.032]
[1736819258077,0.15975056,94769.0,94756.0,0.032]
[1736819258277,0.10697256,94769.0,94756.0,0.032]
[1736819258477,0.052779,94768.0,94756.0,0.032]
[1736819258976,0.052779,94768.0,94756.0,0.036]
[1736819259377,0.05278,94766.0,94756.0,0.036]
[1736819259877,0.05278,94766.0,94756.0,0.04]
[1736819260072,0.10697256,94769.0,94756.0,0.04]
[1736819260277,0.052784,94757.0,94756.0,0.04]
[1736819261178,0.052784,94757.0,94756.0,0.039]
[1736819263675,0.3608,94760.0,94731.0,0.052798]
[1736819263676,0.052792,94744.0,94731.0,0.052798]
[1736819263872,0.07027211,94741.0,94732.0,0.116798]
[1736819265280,0.052793,94742.0,94732.0,0.116798]
[1736819265581,0.052794,94740.0,94732.0,0.121798]
[1736819265886,0.052795,94739.0,94732.0,0.121798]
[1736819266274,0.052795,94738.0,94732.0,0.129798]
[1736819266581,0.052798,94734.0,94732.0,0.077]
[1736819267170,0.052798,94734.0,94732.0,0.072]
[1736819267375,0.052798,94734.0,94732.0,0.069]
[1736819267578,0.052798,94734.0,94732.0,0.077]
[1736819267977,0.052798,94734.0,94732.0,0.072]
[1736819268181,0.052798,94734.0,94732.0,0.077]
[1736819269585,0.052798,94734.0,94732.0,0.4298]
[1736819270888,0.052794,94741.0,94732.0,0.4298]
[1736819271083,0.01555014,94742.0,94736.0,0.052796]
[1736819271384,0.052791,94745.0,94736.0,0.052796]
[1736819271585,0.37614045,94746.0,94736.0,0.052796]
[1736819271973,0.37614045,94746.0,94732.0,0.4312]
[1736819272176,0.052795,94739.0,94732.0,0.4298]
[1736819272376,0.052795,94739.0,94736.0,0.007]
[1736819273186,0.052795,94739.0,94732.0,0.43916]
[1736819273483,0.052795,94739.0,94736.0,0.004]
[1736819273686,0.053795,94739.0,94736.0,0.011]
[1736819274086,0.001,94739.0,94736.0,0.011]
[1736819274281,0.052796,94738.0,94736.0,0.007]
[1736819275088,0.052796,94738.0,94736.0,0.011]
[1736819275280,0.052796,94738.0,94736.0,0.004]
[1736819275980,0.053796,94738.0,94736.0,0.011]
[1736819281589,0.001,94738.0,94736.0,0.063796]
[1736819284187,0.052796,94737.0,94736.0,0.011]
[1736819285189,0.052796,94737.0,94736.0,0.007]
[1736819285389,0.052796,94737.0,94736.0,0.011]
[1736819286092,0.052796,94737.0,94736.0,0.004]
[1736819286295,0.001,94737.0,94716.0,0.052807]
[1736819286484,0.052801,94729.0,94718.0,0.085806]
[1736819286889,0.052801,94728.0,94718.0,0.085806]
[1736819287691,0.052801,94728.0,94720.0,0.3678]
[1736819287994,0.002,94729.0,94720.0,0.3768]
[1736819288196,0.052802,94726.0,94720.0,0.3768]
[1736819288798,0.001,94728.0,94721.0,0.3608]
[1736819288991,0.052803,94725.0,94721.0,0.3608]
[1736819289997,0.052803,94725.0,94721.0,0.3698]
[1736819290702,0.052804,94723.0,94721.0,0.3698]
[1736819291195,0.052804,94723.0,94721.0,0.009]
[1736819291388,0.052804,94723.0,94721.0,0.015]
[1736819292094,0.052804,94723.0,94721.0,0.013]
[1736819292600,0.053804,94723.0,94721.0,0.012]
[1736819295396,0.10711973,94730.0,94721.0,0.012]
[1736819295593,0.052799,94731.0,94721.0,0.012]
[1736819295795,0.0015838,94748.0,94734.0,0.052797]
[1736819296105,0.01352896,94737.0,94735.0,0.0946]
[1736819297408,0.052792,94743.0,94735.0,0.148396]
[1736819297604,0.01373433,94743.0,94735.0,0.148396]
[1736819297906,0.052795,94738.0,94735.0,0.003]
[1736819298105,0.3608,94744.0,94735.0,0.003]
[1736819298293,0.3608,94736.0,94735.0,0.003]
[1736819299000,0.3911,94736.0,94735.0,0.003]
[1736819299302,0.3911,94736.0,94735.0,0.004]
[1736819300701,0.3911,94736.0,94723.0,0.052803]
[1736819300702,0.052797,94735.0,94723.0,0.052803]
[1736819300900,0.10711973,94733.0,94723.0,0.052803]
[1736819301403,0.10711973,94733.0,94721.0,0.063]
[1736819301404,0.0528,94729.0,94721.0,0.063]
[1736819302108,0.052801,94727.0,94721.0,0.063]
[1736819302298,0.10711973,94733.0,94715.0,0.052808]
[1736819302299,0.3608,94724.0,94715.0,0.052808]
[1736819302709,0.052802,94725.0,94716.0,0.052807]
[1736819302903,0.052802,94725.0,94723.0,0.004]
[1736819303295,0.052802,94725.0,94723.0,0.002]
[1736819303499,0.001,94724.0,94723.0,0.002]
[1736819304007,0.052802,94725.0,94723.0,0.004]
[1736819306605,0.3608,94726.0,94723.0,0.002]
[1736819306908,0.3608,94726.0,94724.0,0.0326]
[1736819307106,0.3608,94726.0,94723.0,0.004]
[1736819307510,0.052803,94725.0,94723.0,0.004]
[1736819309399,0.37453888,94726.0,94708.0,0.0326]
[1736819309604,0.052802,94725.0,94723.0,0.004]
[1736819310403,0.052802,94725.0,94723.0,0.002]
[1736819311109,0.052802,94725.0,94708.0,0.0376]
[1736819311110,0.052808,94715.0,94708.0,0.0466]
[1736819312513,0.052808,94715.0,94708.0,0.0416]
[1736819312812,0.052808,94715.0,94708.0,0.0326]
[1736819313008,0.43113537,94718.0,94708.0,0.0326]
[1736819313214,0.05281,94712.0,94708.0,0.0376]
[1736819313410,0.05281,94712.0,94708.0,0.0466]
[1736819313915,0.05281,94711.0,94708.0,0.0466]
[1736819314110,0.05281,94711.0,94708.0,0.0416]
[1736819314308,0.43113537,94718.0,94708.0,0.0366]
[1736819314611,0.052811,94710.0,94708.0,0.0426]
[1736819316510,0.052811,94710.0,94708.0,0.0366]
[1736819316812,0.053811,94710.0,94708.0,0.0336]
[1736819318910,0.06715583,94710.0,94708.0,0.0336]
[1736819325420,0.03054717,94718.0,94709.0,0.3608]
[1736819325621,0.052811,94710.0,94709.0,0.3608]
[1736819326324,0.052811,94710.0,94708.0,0.0336]
[1736819326622,0.052811,94710.0,94709.0,0.001]
[1736819327319,0.052812,94707.0,94702.0,0.03418381]
[1736819328225,0.002,94710.0,94702.0,0.03418381]
[1736819328618,0.052813,94705.0,94702.0,0.03418381]
[1736819329020,0.052813,94705.0,94702.0,0.03618381]
[1736819329321,0.002,94710.0,94702.0,0.00358381]
[1736819329527,0.002,94710.0,94679.0,0.3608]
[1736819329528,0.052814,94704.0,94687.0,0.052823]
[1736819329826,0.052814,94704.0,94702.0,0.002]
[1736819330025,0.052814,94704.0,94703.0,0.0303]
[1736819330625,0.01362153,94710.0,94703.0,0.0303]
[1736819330827,0.05281,94711.0,94709.0,0.3608]
[1736819331318,0.01365462,94718.0,94709.0,0.3608]
[1736819331521,0.3608,94741.0,94717.0,0.3608]
[1736819331522,0.07033537,94720.0,94717.0,0.3608]
[1736819331727,0.052804,94723.0,94717.0,0.3608]
[1736819331927,0.052804,94722.0,94717.0,0.3608]
[1736819332132,0.07033537,94727.0,94717.0,0.3608]
[1736819332628,0.14067074,94727.0,94717.0,0.3608]
[1736819332821,0.052805,94720.0,94717.0,0.3608]
[1736819333625,0.005,94718.0,94717.0,0.3608]
[1736819334024,0.053805,94720.0,94717.0,0.3608]
[1736819334332,0.056805,94720.0,94717.0,0.3608]
[1736819336026,0.055805,94720.0,94717.0,0.3608]
[1736819337529,0.003,94720.0,94717.0,0.3608]
[1736819337735,0.003,94720.0,94718.0,0.052806]
[1736819338232,0.003,94720.0,94719.0,0.0321]
[1736819339827,0.003,94720.0,94719.0,0.0341]
[1736819340131,0.01369406,94729.0,94719.0,0.0341]
[1736819340324,0.052804,94722.0,94719.0,0.0341]
[1736819340524,0.052804,94722.0,94719.0,0.0321]
[1736819340723,0.052804,94722.0,94719.0,0.0331]
[1736819341127,0.052805,94721.0,94719.0,0.0331]
[1736819342235,0.052805,94721.0,94719.0,0.0321]
[1736819343328,0.053805,94721.0,94719.0,0.0321]
[1736819344028,0.052806,94718.0,94717.0,0.3608]
[1736819344618,0.001,94721.0,94717.0,0.3608]
[1736819345019,0.001,94721.0,94718.0,0.0317]
[1736819346128,0.052803,94725.0,94718.0,0.0317]
[1736819346327,0.052804,94723.0,94718.0,0.0317]
[1736819346928,0.001,94721.0,94718.0,0.0327]
[1736819347431,0.052804,94723.0,94718.0,0.0327]
[1736819347635,0.053804,94723.0,94718.0,0.0327]
[1736819348320,0.001,94723.0,94718.0,0.0327]
[1736819348525,0.001,94723.0,94722.0,0.052804]
[1736819349129,0.01356056,94730.0,94726.0,0.052801]
[1736819349324,0.052795,94738.0,94729.0,0.3608]
[1736819349530,0.052795,94738.0,94737.0,0.3608]
[1736819349730,0.07014541,94738.0,94737.0,0.3608]
[1736819350428,0.07614541,94738.0,94737.0,0.3608]
[1736819351035,0.07914541,94738.0,94737.0,0.3618]
[1736819351229,0.02635041,94738.0,94737.0,0.3618]
[1736819351635,0.02935041,94738.0,94737.0,0.3618]
[1736819354242,0.10713502,94750.0,94737.0,0.3618]
[1736819354541,0.052794,94740.0,94737.0,0.3618]
[1736819354741,0.052795,94739.0,94737.0,0.3618]
[1736819356535,0.060795,94739.0,94737.0,0.3618]
[1736819357239,0.08181804,94739.0,94737.0,0.3618]
[1736819358036,0.08381804,94739.0,94737.0,0.29614654]
[1736819360947,0.08381804,94739.0,94737.0,0.001]
[1736819369044,0.08381804,94739.0,94727.0,0.0643]
[1736819369247,0.052801,94728.0,94727.0,0.05420137]
[1736819372253,0.057801,94728.0,94727.0,0.05420137]
[1736819372554,0.07890477,94728.0,94727.0,0.05420137]
[1736819378465,0.052785,94755.0,94728.0,0.0528]
[1736819378655,0.0703014,94750.0,94736.0,0.3608]
[1736819378859,0.052795,94738.0,94737.0,0.033]
[1736819380453,0.009,94738.0,94737.0,0.034]
[1736819380646,0.0703014,94770.0,94737.0,0.335]
[1736819380848,0.13003009,94767.0,94758.0,0.3608]
[1736819381048,0.13003009,94767.0,94766.0,0.3608]
[1736819381858,0.02142448,94770.0,94767.0,0.052779]
[1736819382053,0.0703014,94780.0,94767.0,0.052779]
[1736819382257,0.0703014,94780.0,94778.0,0.3608]
[1736819382554,0.0325,94794.0,94778.0,0.3608]
[1736819382753,0.052763,94796.0,94789.0,0.3608]
[1736819382952,0.1,94800.0,94789.0,0.3608]
[1736819383355,0.1,94800.0,94799.0,0.413561]
[1736819384051,0.1,94800.0,94799.0,0.3608]
[1736819385061,0.21587278,94813.0,94799.0,0.3608]
[1736819385253,0.23692117,94813.0,94799.0,0.3608]
[1736819385557,0.02104839,94813.0,94799.0,0.3608]
[1736819385760,0.052753,94814.0,94799.0,0.3608]
[1736819385968,0.10694657,94810.0,94799.0,0.3608]
[1736819386373,0.002,94800.0,94799.0,0.3608]
[1736819386850,0.10694657,94810.0,94799.0,0.3608]
[1736819387054,0.00158261,94827.0,94808.0,0.3608]
[1736819387256,0.00158261,94827.0,94826.0,0.774346]
[1736819387455,0.00158261,94827.0,94826.0,0.7216]
[1736819389055,0.00458261,94827.0,94826.0,0.7216]
[1736819389258,0.00458261,94827.0,94826.0,0.7226]
[1736819392068,0.052728,94859.0,94826.0,0.7236]
[1736819392267,0.13237566,94860.0,94850.0,0.3608]
[1736819392565,0.05273,94855.0,94850.0,0.3608]
[1736819392968,0.13237566,94860.0,94850.0,0.3608]
[1736819393162,0.13237566,94860.0,94826.0,0.3618]
[1736819393163,0.052737,94843.0,94841.0,0.3608]
[1736819393358,0.3608,94852.0,94826.0,0.3668]
[1736819393359,0.052738,94842.0,94826.0,0.3748]
[1736819393559,0.052738,94842.0,94834.0,0.3608]
[1736819394261,0.052738,94842.0,94836.0,0.3608]
[1736819394963,0.3608,94837.0,94820.0,0.00136]
[1736819395159,0.3608,94837.0,94819.0,0.3608]
[1736819395160,0.052745,94828.0,94819.0,0.3608]
[1736819395366,0.05274,94838.0,94827.0,0.3608]
[1736819395562,0.003,94842.0,94837.0,0.3608]
[1736819396563,0.052735,94846.0,94837.0,0.3608]
[1736819396763,0.052735,94846.0,94845.0,0.3608]
[1736819398562,0.052735,94846.0,94845.0,0.3618]
[1736819399166,0.057735,94846.0,94845.0,0.3618]
[1736819400067,0.057735,94846.0,94845.0,0.001]
[1736819400873,0.057735,94846.0,94845.0,0.3618]
[1736819407972,0.005,94846.0,94845.0,0.3618]
[1736819410797,0.005,94846.0,94845.0,0.001]
[1736819410992,0.052745,94828.0,94827.0,0.33962435]
[1736819411294,0.05275,94819.0,94818.0,0.3608]
[1736819411496,0.052751,94818.0,94816.0,0.0328]
[1736819411686,0.052751,94818.0,94817.0,0.3608]
[1736819413491,0.052751,94818.0,94816.0,0.0328]
[1736819413996,0.053751,94818.0,94816.0,0.0328]
[1736819420199,0.053751,94818.0,94817.0,0.3608]
[1736819420399,0.001,94818.0,94817.0,0.3608]
[1736819420704,0.052746,94826.0,94817.0,0.3608]
[1736819421000,0.052746,94826.0,94825.0,0.3608]
[1736819421389,0.0015823,94837.0,94825.0,0.413546]
[1736819421590,0.0015823,94837.0,94836.0,0.3608]
[1736819421889,0.052731,94854.0,94837.0,0.10694657]
[1736819422095,0.16244192,94857.0,94853.0,0.3608]
[1736819422489,0.1299135,94857.0,94853.0,0.3608]
[1736819422695,0.00056001,94860.0,94854.0,0.0328]
[1736819422891,0.052726,94862.0,94854.0,0.0328]
[1736819424296,0.05273,94856.0,94854.0,0.0328]
[1736819424802,0.00158177,94866.0,94854.0,0.0348]
[1736819425002,0.00158177,94866.0,94855.0,0.0304]
[1736819425003,0.052727,94861.0,94855.0,0.0304]
[1736819425203,0.00158177,94866.0,94856.0,0.3608]
[1736819425393,0.052711,94890.0,94872.0,0.05272]
[1736819425599,0.052712,94887.0,94882.0,0.3608]
[1736819425899,0.052712,94887.0,94883.0,0.0304]
[1736819426695,0.052713,94886.0,94883.0,0.0304]
[1736819428797,0.052713,94886.0,94883.0,0.0394]
[1736819429604,0.052713,94886.0,94883.0,0.0484]
[1736819430306,0.052714,94885.0,94883.0,0.0484]
[1736819434309,0.10345334,94895.0,94883.0,0.0484]
[1736819434510,0.05271,94891.0,94883.0,0.0484]
[1736819434898,0.03242437,94895.0,94883.0,0.0484]
[1736819435102,0.052709,94894.0,94883.0,0.0484]
[1736819435303,0.052709,94894.0,94883.0,0.0394]
[1736819435502,0.052709,94894.0,94883.0,0.0484]
[1736819436112,0.052709,94894.0,94883.0,0.0394]
[1736819436304,0.052709,94894.0,94883.0,0.0474]
[1736819436905,0.052709,94894.0,94883.0,0.0394]
[1736819437102,0.052709,94894.0,94883.0,0.0474]
[1736819437306,0.05271,94892.0,94883.0,0.0474]
[1736819437702,0.05271,94892.0,94883.0,0.0394]
[1736819438216,0.05271,94892.0,94883.0,0.0314]
[1736819439013,0.1,94900.0,94891.0,0.3608]
[1736819439315,0.12984244,94914.0,94905.0,0.052702]
[1736819439505,0.10397918,94923.0,94899.0,0.3608]
[1736819439506,0.03242041,94921.0,94901.0,0.3608]
[1736819439816,0.032,94935.0,94920.0,0.3608]
[1736819440011,0.052688,94931.0,94921.0,0.031]
[1736819440215,0.00064,94936.0,94929.0,0.3608]
[1736819440517,0.00158082,94940.0,94933.0,0.052686]
[1736819440712,0.00158082,94940.0,94939.0,0.3608]
[1736819442421,0.00158082,94940.0,94939.0,0.3618]
[1736819445405,0.00158082,94940.0,94939.0,0.414483]
[1736819445919,0.413473,94958.0,94939.0,0.3618]
[1736819446117,0.03258343,94961.0,94948.0,0.46774657]
[1736819446420,0.3608,94966.0,94948.0,0.46774657]
[1736819446421,0.3608,94966.0,94953.0,0.052675]
[1736819446615,0.052667,94970.0,94958.0,0.3608]
[1736819447322,0.052669,94966.0,94958.0,0.3608]
[1736819448925,0.3608,94967.0,94958.0,0.3698]
[1736819449123,0.05267,94964.0,94958.0,0.3698]
[1736819449626,0.05267,94964.0,94958.0,0.3788]
[1736819450417,0.07267,94964.0,94958.0,0.3788]
[1736819451422,0.02,94964.0,94958.0,0.3788]
[1736819451722,0.3608,94967.0,94958.0,0.3788]
[1736819451916,0.4008,94967.0,94958.0,0.3788]
[1736819452731,0.4008,94967.0,94958.0,0.3698]
[1736819452931,0.4008,94967.0,94958.0,0.3788]
[1736819453930,0.04,94967.0,94958.0,0.3788]
[1736819454130,0.04,94967.0,94958.0,0.3698]
[1736819454330,0.04,94967.0,94958.0,0.3788]
[1736819456628,0.55394155,94971.0,94958.0,0.3788]
[1736819456928,0.55338154,94971.0,94960.0,0.10694657]
[1736819457129,0.55338154,94971.0,94968.0,0.3608]
[1736819458235,0.052672,94959.0,94958.0,0.01936]
[1736819458433,0.052672,94959.0,94958.0,0.009]
[1736819458837,0.052672,94960.0,94958.0,0.004]
[1736819459542,0.052673,94958.0,94949.0,0.3608]
[1736819459840,0.10694657,94960.0,94949.0,0.3608]
[1736819460226,0.052677,94951.0,94949.0,0.3608]
[1736819460940,0.052677,94951.0,94949.0,0.3618]
[1736819461844,0.10694657,94960.0,94949.0,0.3618]
[1736819461845,0.3608,94963.0,94949.0,0.3618]
[1736819462034,0.052675,94955.0,94949.0,0.3618]
[1736819462938,0.39422911,94963.0,94949.0,0.3618]
[1736819463239,0.052677,94951.0,94949.0,0.3618]
[1736819464631,0.052677,94951.0,94949.0,0.3608]
[1736819464846,0.052677,94951.0,94949.0,0.3618]
[1736819465648,0.052684,94937.0,94936.0,0.3608]
[1736819466038,0.052685,94936.0,94934.0,0.0317]
[1736819467148,0.46774657,94944.0,94926.0,0.3608]
[1736819467646,0.05269,94927.0,94926.0,0.31975398]
[1736819467846,0.05269,94927.0,94926.0,0.28601398]
[1736819468348,0.052694,94919.0,94909.0,0.3608]
[1736819468650,0.052696,94917.0,94909.0,0.3608]
[1736819468853,0.052697,94915.0,94909.0,0.3608]
[1736819469747,0.10694657,94920.0,94909.0,0.3608]
[1736819470148,0.052699,94912.0,94906.0,0.0322]
[1736819470350,0.052701,94907.0,94906.0,0.0322]
[1736819472653,0.052701,94907.0,94906.0,0.393]
[1736819472855,0.02852276,94912.0,94906.0,0.0322]
[1736819473155,0.052701,94908.0,94906.0,0.0322]
[1736819473857,0.003,94907.0,94906.0,0.0322]
[1736819474757,0.003,94907.0,94906.0,0.393]
[1736819475447,0.003,94908.0,94906.0,0.393]
[1736819476244,0.003,94907.0,94906.0,0.393]
[1736819476957,0.003,94908.0,94906.0,0.393]
[1736819477856,0.003,94908.0,94906.0,0.445701]
[1736819479049,0.003,94907.0,94906.0,0.393]
[1736819479559,0.003,94907.0,94906.0,0.0322]
[1736819479955,0.055701,94908.0,94906.0,0.0322]
[1736819480152,0.003,94908.0,94906.0,0.0322]
[1736819480654,0.003,94907.0,94906.0,0.0322]
[1736819482349,0.0527,94909.0,94889.0,0.3926]
[1736819482350,0.052706,94898.0,94889.0,0.3926]
[1736819482546,0.05271,94891.0,94889.0,0.3926]
[1736819482750,0.05271,94891.0,94889.0,0.3608]
[1736819484054,0.05571,94891.0,94889.0,0.3608]
[1736819485256,0.052712,94888.0,94884.0,0.0333]
[1736819485458,0.3608,94885.0,94884.0,0.0333]
[1736819487263,0.3638,94885.0,94884.0,0.0333]
[1736819488762,0.3608,94885.0,94884.0,0.0333]
[1736819488964,0.3638,94885.0,94884.0,0.0333]
[1736819490867,0.052717,94879.0,94878.0,0.0331]
[1736819491255,0.3638,94885.0,94878.0,0.0331]
[1736819491461,0.003,94885.0,94883.0,0.3608]
[1736819491768,0.003,94885.0,94884.0,0.0312]
[1736819492668,0.052712,94888.0,94884.0,0.0312]
[1736819493570,0.002,94885.0,94884.0,0.0312]
[1736819494267,0.054712,94888.0,94884.0,0.0312]
[1736819495167,0.052714,94884.0,94878.0,0.0331]
[1736819496467,0.054714,94884.0,94878.0,0.0331]
[1736819497777,0.3628,94884.0,94871.0,0.0303]
[1736819498074,0.3628,94884.0,94873.0,0.0306]
[1736819498075,0.052718,94877.0,94873.0,0.0306]
[1736819499169,0.052719,94876.0,94873.0,0.0306]
[1736819500076,0.002,94877.0,94873.0,0.0306]
[1736819500378,0.052719,94875.0,94873.0,0.0306]
[1736819501167,0.002,94876.0,94867.0,0.3608]
[1736819501366,0.052723,94868.0,94867.0,0.3608]
[1736819501575,0.052726,94862.0,94858.0,0.0311]
[1736819502870,0.052726,94862.0,94858.0,0.0371]
[1736819503072,0.052726,94862.0,94858.0,0.0381]
[1736819503483,0.07753026,94862.0,94858.0,0.0381]
[1736819506469,0.3608,94859.0,94858.0,0.007]
[1736819506773,0.3608,94859.0,94843.0,0.0302]
[1736819506774,0.052734,94849.0,94843.0,0.0302]
[1736819506978,0.3608,94848.0,94843.0,0.0302]
[1736819507974,0.052736,94845.0,94843.0,0.0302]
[1736819509183,0.055736,94845.0,94843.0,0.0302]
[1736819509683,0.058736,94845.0,94843.0,0.0302]
[1736819510276,0.055736,94845.0,94843.0,0.0302]
[1736819510581,0.061736,94845.0,94843.0,0.0302]
[1736819511877,0.055736,94845.0,94843.0,0.0302]
[1736819512082,0.058736,94845.0,94843.0,0.0302]
[1736819515480,0.006,94845.0,94843.0,0.391]
[1736819515778,0.3608,94859.0,94843.0,0.391]
[1736819515981,0.007,94845.0,94843.0,0.391]
[1736819516176,0.007,94845.0,94843.0,0.0302]
[1736819517078,0.004,94845.0,94843.0,0.0312]
[1736819518381,0.002,94845.0,94843.0,0.0312]
[1736819518582,0.002,94845.0,94843.0,0.0302]
[1736819518783,0.002,94845.0,94843.0,0.391]
[1736819518981,0.02514406,94859.0,94843.0,0.391]
[1736819519179,0.0015818,94864.0,94856.0,0.3608]
[1736819520884,0.0015818,94864.0,94858.0,0.052728]
[1736819521182,0.0015818,94864.0,94856.0,0.3608]
[1736819521183,0.572837,94878.0,94862.0,0.052726]
[1736819521485,0.52068001,94878.0,94872.0,0.3608]
[1736819521681,0.52012,94878.0,94872.0,0.3608]
[1736819522181,0.52012,94878.0,94873.0,0.0312]
[1736819523387,0.52112,94878.0,94873.0,0.0312]
[1736819523585,0.001,94878.0,94873.0,0.0312]
[1736819524185,0.052721,94872.0,94863.0,0.0307]
[1736819524393,0.052721,94871.0,94864.0,0.0327]
[1736819525884,0.053721,94871.0,94864.0,0.0327]
[1736819526191,0.052723,94868.0,94864.0,0.0327]
[1736819526991,0.001,94871.0,94864.0,0.0327]
[1736819527493,0.001,94871.0,94869.0,0.052722]
[1736819528286,0.10694657,94880.0,94869.0,0.052722]
[1736819528787,0.052719,94876.0,94864.0,0.0327]
[1736819529191,0.001,94871.0,94866.0,0.052724]
[1736819530097,0.052719,94875.0,94866.0,0.052724]
[1736819530492,0.05272,94874.0,94866.0,0.052724]
[1736819530995,0.10694657,94880.0,94864.0,0.0347]
[1736819531295,0.052724,94866.0,94864.0,0.0347]
[1736819531691,0.052724,94866.0,94864.0,0.0327]
[1736819532693,0.10694657,94874.0,94864.0,0.0327]
[1736819533092,0.002,94866.0,94864.0,0.0327]
[1736819534693,0.052722,94870.0,94864.0,0.0327]
[1736819535494,0.002,94866.0,94864.0,0.0327]
[1736819536099,0.052724,94867.0,94864.0,0.0327]
[1736819536393,0.052728,94858.0,94842.0,0.052737]
[1736819536590,0.05273,94855.0,94843.0,0.032]
[1736819537292,0.3608,94856.0,94843.0,0.032]
[1736819537487,0.3608,94867.0,94845.0,0.3608]
[1736819537790,0.10694657,94863.0,94854.0,0.3608]
[1736819537993,0.002,94866.0,94854.0,0.3608]
[1736819538393,0.002,94866.0,94863.0,0.3608]
[1736819538699,0.46774657,94880.0,94864.0,0.149425]
[1736819539289,0.10694657,94880.0,94864.0,0.0967]
[1736819539486,0.10694657,94880.0,94866.0,0.052723]
[1736819540197,0.12911092,94880.0,94866.0,0.052723]
[1736819541993,0.12911092,94880.0,94866.0,0.001]
[1736819542192,0.3928,94889.0,94876.0,0.3608]
[1736819542193,0.3608,94889.0,94876.0,0.3608]
[1736819542389,0.3608,94889.0,94876.0,0.413518]
[1736819542598,0.001,94880.0,94876.0,0.413518]
[1736819543394,0.001,94880.0,94879.0,0.052717]
[1736819544098,0.02244547,94895.0,94877.0,0.052717]
[1736819544303,0.52064001,94902.0,94891.0,0.3608]
[1736819544502,0.52064001,94902.0,94893.0,0.052708]
[1736819544695,0.54274037,94902.0,94893.0,0.052708]
[1736819545596,0.54274037,94902.0,94894.0,0.052708]
[1736819545797,0.00458143,94897.0,94894.0,0.052708]
[1736819546699,0.00458143,94897.0,94894.0,0.053708]
[1736819546901,0.00458143,94897.0,94894.0,0.001]
[1736819556507,0.00458143,94897.0,94895.0,0.052708]
[1736819556695,0.00458143,94897.0,94896.0,0.0315]
[1736819556901,0.12982354,94913.0,94896.0,0.0315]
[1736819557098,0.12982354,94913.0,94912.0,0.3608]
[1736819557300,0.12982354,94913.0,94912.0,0.413498]
[1736819557902,0.00158055,94933.0,94912.0,0.3608]
[1736819558106,0.00158055,94933.0,94922.0,0.3608]
[1736819558409,0.052693,94922.0,94913.0,0.0639]
[1736819558804,0.10694657,94923.0,94913.0,0.0639]
[1736819559010,0.052696,94917.0,94913.0,0.0639]
[1736819560507,0.052696,94917.0,94913.0,0.0649]
[1736819561106,0.052696,94917.0,94913.0,0.0739]
[1736819561306,0.12657626,94923.0,94913.0,0.0739]
[1736819561614,0.01962969,94923.0,94913.0,0.0659]
[1736819561911,0.052691,94925.0,94913.0,0.0659]
[1736819562214,0.01963167,94925.0,94913.0,0.0659]
[1736819562409,0.10694657,94930.0,94913.0,0.0659]
[1736819562613,0.0328,94924.0,94913.0,0.0649]
[1736819562819,0.052694,94921.0,94913.0,0.0739]
[1736819563108,0.052694,94921.0,94913.0,0.0769]
[1736819564316,0.052695,94917.0,94913.0,0.013]
[1736819564623,0.052697,94914.0,94913.0,0.013]
[1736819565113,0.4008,94914.0,94893.0,0.3608]
[1736819565307,0.3608,94905.0,94893.0,0.3608]
[1736819566620,0.413503,94905.0,94893.0,0.3608]
[1736819567603,0.413503,94905.0,94893.0,0.3618]